Cogmind - Beta 10.1 @@@ ROGUE MODE // 2020.10.10 @ 13:19:58 Player: aperiodic Result: Destroyed by as-90128 with Assembled Rifle Performance ------------- Evolutions (0) 0 Regions Visited (2) 400 Robots Destroyed (33) 165 Value Destroyed (407) 407 Prototype IDs (3) 60 Alien Tech Used (0) 0 Bonus (0) 0 TOTAL SCORE: 1032 Bonus ------- None Cogmind --------- Core Integrity 0/250 Matter 271/300 Energy 250/250 System Corruption 0% Temperature Cool (0) Movement Rolling (120) Ox2 Location -10/Mines Parts ------- > --- POWER (1) -------- Ion Engine > --- PROPULSION (2) --- Compact Wheel > --- UTILITY (2) ------ Medium Storage Unit Large Storage Unit > --- WEAPON (2) ------- Rocket Launcher > --- INVENTORY (14) --- Light Nuclear Core Aluminum Leg Aluminum Leg Heat Sink Improved Terrain Scanner Medium Laser Medium Laser Light Assault Rifle Mining Laser Peak State ------------ > --- POWER ------------ Ion Engine > --- PROPULSION ------- Wheel Compact Wheel > --- UTILITY ---------- Medium Storage Unit Large Storage Unit > --- WEAPON ----------- Assault Rifle Rocket Launcher > --- INVENTORY -------- Light Nuclear Core Aluminum Leg Aluminum Leg Compact Wheel Heat Sink Medium Laser Medium Laser Light Assault Rifle Mining Laser [Rating: 9] Favorites ----------- Power Ion Engine Engine Ion Engine Propulsion Compact Wheel Leg Aluminum Leg Wheel Compact Wheel Utility Large Storage Unit Device Heat Sink Storage Large Storage Unit Weapon EM Pulse Gun Energy Gun EM Pulse Gun Ballistic Gun Assault Rifle Launcher Rocket Launcher Build | -11 -10 -10 ------- Run | Scr Mat Min Slots Evolved . | . . . Power . | . . . Propulsion . | . . . Utility . | . . . Weapon . | . . . Parts Attached 25 | 6 7 12 Power 2 | 1 . 1 Engine 2 | 1 . 1 Core . | . . . Reactor . | . . . Propulsion 9 | 2 . 7 Treads . | . . . Leg 2 | . . 2 Wheel 7 | 2 . 5 Hover . | . . . Flight . | . . . Utility 4 | 1 3 . Device 1 | . 1 . Storage 3 | 1 2 . Processor . | . . . Hackware . | . . . Protection . | . . . Artifact . | . . . Weapon 10 | 2 4 4 Energy Gun 5 | . 4 1 Energy Cannon . | . . . Ballistic Gun 4 | 2 . 2 Ballistic Cannon . | . . . Launcher 1 | . . 1 Special Weapon . | . . . Impact Weapon . | . . . Slashing Weapon . | . . . Piercing Weapon . | . . . Special Melee Weapon . | . . . Unidentified Prototypes . | . . . Parts Lost 7 | . . 7 Power 1 | . . 1 Propulsion 3 | . . 3 Utility . | . . . Weapon 3 | . . 3 Highest Loss Streak 3 | . . 3 Average Slot Usage (%) 93 | . 86 98 Engine 13 | . 14 13 Leg 3 | . . 5 Wheel 24 | . 28 21 Device 1 | . 2 . Storage 22 | . 14 28 Energy Gun 13 | . 16 11 Ballistic Gun 9 | . 9 9 Launcher 3 | . . 6 Naked Turns . | . . . Heaviest Build 35 | 12 33 35 Greatest Support 32 | 26 26 32 Greatest Overweight (x) 3 | 3 1 2 Average Overweight (x) . | . . 1 Largest Inventory Capacity 14 | 6 14 14 Average Capacity 11 | 5 9 14 Most Carried 13 | 5 10 13 Average Carried 8 | 2 6 9 Final Capacity 14 | 6 14 14 Final Carried 10 | 4 10 9 Class Distribution -------------------- 100% | Mutant Dominant Class ---------------- Mutant | -10/Materials Mutant | -10/Mines Resources | -11 -10 -10 ----------- Run | Scr Mat Min Matter Collected 512 | 214 117 181 Remotely . | . . . Salvage Created 774 | . 331 443 Parts 40 | . 23 17 Haulers Intercepted 1 | . 1 . Recyclers Shooed 1 | . . 1 Parts Field Recycled . | . . . Retrieved Matter . | . . . Parts Self-Destructed . | . . . Prevented . | . . . Kills | -11 -10 -10 ------- Run | Scr Mat Min Combat Hostiles Destroyed 26 | . 7 19 Guns 11 | . 7 4 AOE 15 | . . 15 Classes Destroyed 8 | . 5 3 Worker 2 | . 1 1 Tunneler 1 | . . 1 Hauler 1 | . 1 . Recycler 2 | . . 2 Watcher 1 | . 1 . Swarmer 6 | . 3 3 Grunt 8 | . 4 4 Assembled 12 | . . 12 Best Kill Streak 12 | . 5 12 Combat Bots Only 12 | . 3 12 Max Kills in Single Turn 6 | . 1 6 Gunslinging . | . . . Exploded 6 | . . 6 Melee . | . . . Uniques/NPCs Destroyed . | . . . Combat | -11 -10 -10 -------- Run | Scr Mat Min Damage Taken 933 | . 250 683 Core 264 | . 69 195 Absorbed by Shields . | . . . Core Remaining (%) 100 | 100 . . Volleys Fired 55 | . 28 27 Largest 2 | . 2 2 Hottest 80 | . 80 80 Shots Fired 95 | . 44 51 Gun 90 | . 44 46 Cannon . | . . . Launcher 5 | . . 5 Special . | . . . Kinetic 31 | . 5 26 Thermal . | . . . Explosive 5 | . . 5 Electromagnetic 59 | . 39 20 Robot Hit Streak 7 | . 7 5 Robot Miss Streak 4 | . 4 3 Penetration Max . | . . . Secondary Targets 1 | . . 1 Max Gunslinging Chain 1 | . . 1 Shots Hit Robots 54 | . 26 28 Core Hits 56 | . 14 42 Critical Hits . | . . . Critical Kills . | . . . Critical Parts Destroyed . | . . . Melee Attacks . | . . . Impact . | . . . Slashing . | . . . Piercing . | . . . Sneak Attacks . | . . . Combat Hostiles . | . . . Follow-up Attacks . | . . . Damage Inflicted 1847 | . 375 1472 Guns 658 | . 331 327 Cannons . | . . . Explosions 1188 | . 44 1144 Melee . | . . . Ramming 1 | . . 1 Kinetic 201 | . 37 164 Thermal 123 | . 44 79 Explosive 1065 | . . 1065 Electromagnetic 457 | . 294 163 Impact . | . . . Slashing . | . . . Piercing . | . . . Highest Corruption . | . . . Average Corruption . | . . . Corruption Purged . | . . . Overload Shots . | . . . Overflow Damage 19 | . . 19 Projectiles . | . . . Explosions 19 | . . 19 Melee . | . . . Knockbacks . | . . . Impact . | . . . Kinetic . | . . . Secondary . | . . . Self-Inflicted Damage 184 | . 39 145 Shots 5 | . 1 4 Rammed 1 | . . 1 Targets Rammed 1 | . . 1 Kicked . | . . . Crushed . | . . . Highest Temperature 162 | . 64 162 Average Temperature 45 | . 29 56 Received Heat Transfer 252 | . 66 186 Siege Activations . | . . . Robots Corrupted . | . . . Combat Hostiles . | . . . Parts Fried . | . . . Impact Corruptions . | . . . Robots Melted . | . . . Combat Hostiles . | . . . Parts Melted . | . . . Heat Transferred 100 | . . 100 Parts Sabotaged . | . . . Parts Stolen . | . . . Parts Stripped . | . . . Power Chain Reactions 2 | . 1 1 Missiles Intercepted . | . . . Alert | -11 -10 -10 ------- Run | Scr Mat Min Peak Influence 244 | . 244 198 Initial 38 | . . 38 Average 78 | . 95 74 Maximum Alert Level 1 | . 1 . Low Security (%) 94 | 100 85 100 Level 1 5 | . 14 . Level 2 . | . . . Level 3 . | . . . Level 4 . | . . . Level 5 . | . . . High Security . | . . . Max Security . | . . . Squads Dispatched 3 | . 3 . Investigation 2 | . 2 . Extermination . | . . . Reinforcement 1 | . 1 . Assault . | . . . Garrison . | . . . Intercept . | . . . Construction Impeded . | . . . Haulers Reinforced . | . . . Stealth | -11 -10 -10 --------- Run | Scr Mat Min Distress Signals . | . . . Communications Jammed . | . . . Distress Signals . | . . . Times Spotted 39 | . 15 24 Peak Tracking Total 17 | . 4 17 Tactical Retreats 2 | . 1 1 Traps | -11 -10 -10 ------- Run | Scr Mat Min Traps Triggered 2 | . 2 . Indirectly . | . . . Trap Hack Attempts . | . . . Triggered . | . . . Disarmed . | . . . Reprogrammed . | . . . Reused . | . . . Traps Extracted . | . . . Installed . | . . . Triggered . | . . . Machines | -11 -10 -10 ---------- Run | Scr Mat Min Machines Disabled 1 | . 1 . Max in Single Turn 1 | . 1 . Machines Sabotaged . | . . . Garrisons Compromised . | . . . Overloaded Fab Kills . | . . . Fab Network Shutdowns . | . . . Hacking | -11 -10 -10 --------- Run | Scr Mat Min Machines Accessed 4 | . 3 1 Terminals 4 | . 3 1 Fabricators . | . . . Repair Stations . | . . . Recycling Units . | . . . Scanalyzers . | . . . Garrison Access . | . . . Total Hacks 19 | . 16 3 Successful 11 | . 10 1 Failed 8 | . 6 2 Catastrophic 1 | . . 1 Database Lockouts . | . . . Manual 10 | . 7 3 Terminals 19 | . 16 3 Fabricators . | . . . Repair Stations . | . . . Recycling Units . | . . . Scanalyzers . | . . . Garrison Access . | . . . Terminal Hacks 8 | . 8 . Prototype ID Bank 2 | . 2 . Branch Access Points 1 | . 1 . Locate Traps 1 | . 1 . Transport Status 1 | . 1 . Recall Investigation 1 | . 1 . Hauler Manifests 1 | . 1 . Zone Layout 1 | . 1 . Fabricator Hacks . | . . . Repair Station Hacks . | . . . Recycling Unit Hacks . | . . . Scanalyzer . | . . . Garrison Access Hacks . | . . . Unauthorized Hacks 3 | . 2 1 Terminals 3 | . 2 1 Botnet 3 | . 2 1 Fabricators . | . . . Repair Stations . | . . . Recycling Units . | . . . Scanalyzers . | . . . Garrison Access . | . . . Data Cores Recovered . | . . . Used . | . . . Hacking Detections 4 | . 3 1 Full Trace Events . | . . . Feedback Events . | . . . Feedback Blocked . | . . . Robot Schematics Acquired . | . . . Robots Built . | . . . Matter . | . . . Time . | . . . Total Robot Build Rating . | . . . Part Schematics Acquired . | . . . Parts Built . | . . . Matter . | . . . Time . | . . . Total Part Build Rating . | . . . Parts Repaired . | . . . Time . | . . . Parts Recycled . | . . . Recycled Matter . | . . . Retrieved Matter . | . . . Retrieved Components . | . . . Parts Scanalyzed . | . . . Part Schematics Acquired . | . . . Parts Damaged . | . . . Bothacking | -11 -10 -10 ------------ Run | Scr Mat Min Used RIF Installer . | . . . Robots Hacked . | . . . Non-combat . | . . . Combat . | . . . Robot Hacks Applied . | . . . Relay Couplers Released . | . . . Robots Rewired . | . . . Allies Hacked . | . . . Hacks Repelled . | . . . Allies | -11 -10 -10 -------- Run | Scr Mat Min Total Allies . | . . . Largest Group . | . . . Highest-Rated Group . | . . . Highest-Rated Ally . | . . . Total Orders . | . . . Ally Attacks . | . . . Total Damage . | . . . Kills . | . . . Allies Corrupted . | . . . Allies Melted . | . . . Intel | -11 -10 -10 ------- Run | Scr Mat Min Robot Analysis Total . | . . . Derelict Logs Recovered 1 | . . 1 Drone Launches . | . . . Drone Recoveries . | . . . Exploration | -11 -10 -10 ------------- Run | Scr Mat Min Turns Passed 1094 | 66 438 590 Spaces Moved 673 | 53 215 405 Core 12 | 12 . . Treads . | . . . Legs 77 | . . 77 Wheels 584 | 41 215 328 Hover . | . . . Flight . | . . . Fastest Speed 50 | 50 90 90 Average Speed 105 | 95 90 115 Slowest Speed 200 | 200 100 150 Overloaded Moves . | . . . Propulsion Burnouts . | . . . Robots Hopped . | . . . Cave-ins Triggered . | . . . Exploration Rate (%) 38 | 4 39 73 Regions Visited 2 Branch Regions 1 Pre-discovered Areas . | . . . Known Exits Taken 1 | . 1 . Unknown Exits Taken 1 | 1 . . Scrap Searched 2 | . . 2 Spaces Dug 20 | . . 20 Terrain Destroyed 48 | . 3 45 Melee . | . . . Projectile . | . . . AOE 48 | . 3 45 Terrain Rammed . | . . . Walls Destroyed . | . . . Machines Disabled . | . . . Actions | -11 -10 -10 --------- Run | Scr Mat Min Total 957 | 68 413 476 Wait 177 | . 152 25 Move 671 | 52 214 405 Hop . | . . . Pick Up 24 | 10 9 5 Fast Attach . | . . . Attach 13 | 6 2 5 Detach 1 | . 1 . Swap 12 | . 5 7 Drop 3 | . 2 1 Fire 55 | . 28 27 Melee . | . . . Ram 1 | . . 1 Kick . | . . . Crush . | . . . Escape Stasis . | . . . Rewire . | . . . Trap . | . . . Miscellaneous . | . . . Route ------- -11/Scrapyard -10/Materials (discovered 2 exits: [*Mat] / *Min) -10/Mines (discovered 2 exits: [*Mat x2]) History --------- Turn | Location | Event 24 | -11/Scrapyard | Discovered new exit (range 15) 67 | -11/Scrapyard | Entered Materials 207 | -10/Materials | Identified exit to Mines 316 | -10/Materials | Build established: Mutant 354 | -10/Materials | Discovered new exit (range 3) 505 | -10/Materials | Entered Mines 655 | -10/Mines | Learned Materials stockpile data 676 | -10/Mines | Received a Rocket Launcher from a helpful Derelict 748 | -10/Mines | Core integrity fell below 50% 775 | -10/Mines | Lost 3 parts (1p2w) 809 | -10/Mines | Core integrity fell below 20% 816 | -10/Mines | Discovered new exit (range 8) 928 | -10/Mines | Discovered new exit (range 13) 1082 | -10/Mines | Assembled infested the area 1095 | -10/Mines | Destroyed by as-90128 with Assembled Rifle Last Messages --------------- 00887_ U-05 Engineer lays Concrete. 00895_ Acquired 25 matter. 00928_ EXIT=FOUND 01012_ K-01 Serf collects debris. 01026_ Slammed into K-01 Serf. 01082_ ALERT: Infestation in the mines, dispatching Demolisher response squad. 01087_ as-62280 destroyed. 01090_ Com. Wheel destroyed. 01091_ as-63904 destroyed. 01091_ as-97832 destroyed. 01091_ Assault Rifle destroyed. 01091_ Destroyed Assault Rifle. 01091_ Destroyed Asb. Hover Unit. 01094_ as-60952 destroyed. 01094_ as-51879 destroyed. 01094_ as-30100 destroyed. 01094_ as-35367 destroyed. 01094_ as-25175 destroyed. 01094_ as-88099 destroyed. Map ----- +----------------------------------------------------+ | | | | | | | ?????????????????????????????????????????????????? | | ?????????????????????????????????????????????????? | | ?????????????????????????????????????????????????? | | ?????????????????????????????????????????????????? | | ?????????????????????????????????????????????????? | | ?????????????????????????????????????????????????? | | ?????????????????????????????????????????????????? | | ???????????????????????? ???????????????????????? | | ???????????????????????? ???? ??????????????????? | | ???????????????????????? ??? #????????????????? | | ???????????????????????# ???% ##??????????????? | | ??????????????????????## ??? #?????????????## | | ??????????????????????# ???a% ###??????????## | | ??????????????????????# ?? a #??????????# | | ?????????????????????## ?? ##?????????# | | ???????????? ???????## a### ##????????# | | ??????????? #?????## a ##???????# | | ??????????? #???## %a% ????????# | | ??????????# #### ???????## | | ???????????# ?????????## | | ????????????# %% #???????????## | | ??????????????? a #????????????# | | ????????????????? ??# @ #?????????????# # | | ?????????????????# ?# #?????????????# # | | ??????? ??????## ### ###?????????????## | | ????? ##### ## #????????????????## | | ????? #?????????????????### | | ????? ##???????????????????## | | ????? ####????????????????????## | | ????? ### ##????????????????????#### | | ?????? ##?????## #????????????????????## | | ?????????????????##k ##???????????????????# | | ??????????????????## ####????????????????# ## | | ???????????????????## ##??????????????# ##? | | ????????????????????## #??????????????## #??? | | ?????????????????????# #???????????????##???? | | ?????????????????????## #????????????????????? | | ????????????????# ###### ##????????####????????? | | ????????????????# ##??####??## ####?????? | | ?????????????????####### ##### #### #?????? | | ???????????????????????# ## ####### | | ???????????????????????# | | ???????????????????????# ##### ### ##### | | ???????????????????????# #???## #### ##?# #???? | | ??????????############## #????####??## #??# #???? | | ??????????# %*% ! #??????????## ##??# #???? | | ??????????# ##############?????????## #???# ###?? | +----------------------------------------------------+ Best States ------------- Heat Dissipation 35 Energy Generation 10 Energy Capacity 250 Matter Stores 300 Matter Capacity 300 Sight Range 16 Terrain Scan Density 10 Evasion (%) 42 Item Schematics ----------------- None Robot Schematics ------------------ None Fabricated ------------ Nothing Alien Tech Used ----------------- None Achievements -------------- None Challenges ------------ None Game ------ Seed GlidesysHeavyVibroblade Manual? 0 Play Time 00:20:18 Cumulative 84.9 hours Start 2020.10.10 @ 12:59:49 End 2020.10.10 @ 13:19:58 Sessions 1 Manual Loads 0 Difficulty Rogue Special Mode None Game No. 43 Rogue 39 Adventurer 4 Explorer 0 Win Type - Total 0 Types 0/0/0/0/0/0/0/0/0 Lore% 43 Gallery% 54 Achievement% 42 Wizard Run 0 Options --------- ASCII 1 Keyboard 0 Movement Mouse Keybinds 0 Fullscreen 1 Font 18/SmallcapsGlow Map View 76x50 Tactical HUD 1 Map Filters NONE Filters NONE Steam 1 RUN: f0f5d05f-4a11-4b3b-b65e-838334ea3527